bitfinex-derivatives/quotes_SOLF0:USTF0_20241015
["timestamp","ask_amount","ask_price","bid_price","bid_amount"]
[1729011645932,3.2288,154.88,154.78,33.5698]
[1729011646134,33.6056,154.92,154.8,24.78]
[1729011646332,8.8256,154.92,154.8,24.78]
[1729011646535,8.8256,154.92,154.78,8.7898]
[1729011646536,3.2282,154.91,154.88,3.2287]
[1729011647032,77.2,154.97,154.85,24.78]
[1729011647232,14.71216991,155.0,154.88,24.78]
[1729011647436,3.227,154.97,154.94,3.2274]
[1729011648532,24.78,155.04,154.9,24.78]
[1729011648733,1.3776,155.05,154.95,24.78]
[1729011649037,10.0665,155.09,154.96,7.4]
[1729011649230,3.2251,155.06,154.96,8.727]
[1729011649842,10.0665,155.09,154.96,8.727]
[1729011650224,24.78,155.08,154.96,8.727]
[1729011651138,24.78,155.08,155.0,3.2261]
[1729011651139,3.2253,155.05,155.0,3.2261]
[1729011651337,3.2253,155.05,154.96,8.727]
[1729011651540,2.6665,155.09,155.05,3.2251]
[1729011651737,1.3776,155.11,155.02,7.38]
[1729011651926,1.3776,155.11,155.03,7.38]
[1729011652135,3.2243,155.1,155.03,7.38]
[1729011652828,1.3776,155.11,155.03,7.38]
[1729011654040,24.78,155.1,154.98,27.98824541]
[1729011654335,3.2253,155.05,155.0,3.2262]
[1729011654530,24.78,155.08,155.0,3.2262]
[1729011655044,24.78,155.05,154.98,3.2266]
[1729011655345,3.2258,155.03,154.98,3.2266]
[1729011655532,3.2258,155.03,154.97,7.38]
[1729011656034,24.78,155.05,154.97,7.38]
[1729011656436,3.2252,155.05,154.97,7.38]
[1729011656641,2.7474,155.09,154.98,24.78]
[1729011656834,1.3776,155.11,155.01,24.78]
[1729011657031,3.2242,155.1,155.06,3.2248]
[1729011657745,3.2238,155.12,155.06,3.225]
[1729011657931,8.8024,155.16,155.04,40.28]
[1729011658133,1.03351339,155.15,155.04,40.28]
[1729011658340,3.2235,155.14,155.1,3.224]
[1729011658539,8.8024,155.16,155.1,3.224]
[1729011658940,3.2235,155.14,155.1,3.224]
[1729011659147,11.98025468,155.16,155.07,3.2248]
[1729011659752,40.28,155.14,155.02,7.38]
[1729011660150,3.2248,155.08,155.02,7.38]
[1729011660351,40.28,155.09,155.02,10.6057]
[1729011660548,40.28,155.09,154.99,8.696]
[1729011660755,4.179,155.08,154.99,8.696]
[1729011660955,3.2253,155.05,155.01,3.226]
[1729011661449,4.5428,155.08,155.01,3.2259]
[1729011661657,1.3182,155.08,154.99,48.976]
[1729011662049,1.3182,155.08,154.99,8.696]
[1729011662251,41.5982,155.08,154.99,7.38]
[1729011663759,3.2253,155.05,155.02,3.2258]
[1729011664055,40.28,155.05,154.96,69.74]
[1729011664252,40.28,155.05,154.96,77.1]
[1729011664655,41.5982,155.08,154.96,77.1]
[1729011664954,3.2253,155.05,155.02,3.2258]
[1729011665348,1.3182,155.08,154.98,3.2297719]
[1729011665545,3.2252,155.06,154.96,117.38]
[1729011665952,3.2243,155.1,155.07,3.2248]
[1729011666154,2.8608,155.12,155.01,50.79265747]
[1729011666759,3.2245,155.09,155.01,50.79265747]
[1729011667456,3.2244,155.09,155.03,3.2255]
[1729011667654,40.28,155.1,155.01,7.36]
[1729011668054,2.8608,155.12,155.01,7.36]
[1729011668453,2.8608,155.12,155.01,47.64]
[1729011668653,3.2238,155.12,155.04,40.28]
[1729011668847,3.2238,155.12,155.05,3.17365569]
[1729011669060,3.2238,155.12,155.06,7.36]
[1729011669366,4.5446,155.13,155.06,7.36]
[1729011669959,1.321,155.13,155.06,7.36]
[1729011670663,4.5447,155.13,155.1,3.2241]
[1729011671060,2.666,155.17,155.06,47.64]
[1729011671363,3.2234,155.14,155.11,3.2238]
[1729011671556,4.0067,155.17,155.08,40.28]
[1729011671870,1.3407,155.17,155.08,40.28]
[1729011672160,1.3407,155.17,155.06,47.64]
[1729011672551,3.2234,155.14,155.11,3.2239]
[1729011672752,1.3407,155.17,155.06,7.36]
[1729011673056,3.2242,155.1,155.06,7.36]
[1729011673248,47.64,155.16,155.06,7.36]
[1729011674066,7.36,155.16,155.06,7.36]
[1729011674467,3.2236,155.13,155.1,3.2241]
[1729011675158,3.2236,155.13,155.08,3.2244]
[1729011675356,3.2236,155.13,155.06,7.36]
[1729011675553,3.2238,155.12,155.06,7.36]
[1729011675861,47.64,155.16,155.06,7.36]
[1729011676660,47.64,155.16,155.07,3.2248]
[1729011677261,3.2239,155.12,155.07,3.2248]
[1729011678957,3.224,155.11,155.07,3.2248]
[1729011679162,3.224,155.11,155.05,7.36]
[1729011679463,32.12,155.16,155.08,3.2245]
[1729011679760,7.36,155.16,155.05,35.34497407]
[1729011679965,32.12,155.16,155.05,7.36]
[1729011680157,3.224,155.11,155.05,7.36]
[1729011680563,3.224,155.11,155.07,3.2247]
[1729011681462,3.224,155.11,155.05,10.55078602]
[1729011681668,3.224,155.11,155.08,3.2245]
[1729011681965,1.3407,155.17,155.05,35.34013622]
[1729011682159,1.3407,155.17,155.1,3.2241]
[1729011682561,1.3407,155.17,155.05,35.34013622]
[1729011682861,3.24262657,155.26,155.11,24.76]
[1729011682862,2.8403,155.21,155.11,24.76]
[1729011683059,2.8403,155.21,155.12,7.36]
[1729011683260,1.4009,155.25,155.14,24.76]
[1729011683454,1.4009,155.25,155.12,7.36]
[1729011683455,4.2316,155.25,155.16,24.76]
[1729011683658,3.2218,155.22,155.13,26.0913]
[1729011683869,24.76,155.24,155.15,3.2229]
[1729011684368,4.2316,155.25,155.14,24.76]
[1729011684863,3.2219,155.22,155.17,3.2225]
[1729011685063,3.2219,155.22,155.14,24.76]
[1729011685463,4.2316,155.25,155.14,24.76]
[1729011685766,4.2316,155.25,155.16,24.76]
[1729011686360,4.2316,155.25,155.17,7.36]
[1729011686560,77.02,155.3,155.18,24.76]
[1729011686759,3.2212,155.25,155.21,3.2218]
[1729011687166,1.3127,155.28,155.17,7.36]
[1729011687367,3.2217,155.22,155.19,3.2222]
[1729011687566,1.3127,155.28,155.19,3.2222]
[1729011687762,3.2216,155.23,155.15,3.223]
[1729011687966,24.76,155.26,155.15,7.36]
[1729011689165,3.222,155.21,155.17,3.2225]
[1729011689870,24.76,155.26,155.15,7.36]
[1729011690065,3.2222,155.2,155.16,3.2228]
[1729011690376,7.36,155.25,155.15,7.36]
[1729011690669,24.76,155.23,155.13,7.34]
[1729011690973,24.76,155.21,155.08,1.423]
[1729011691167,24.76,155.18,155.09,7.34]
[1729011691674,11.3713,155.2,155.09,7.34]
[1729011691877,24.76,155.19,155.09,7.34]
[1729011692077,24.76,155.19,155.06,1.423]
[1729011692278,24.76,155.16,155.06,8.763]
[1729011692571,3.2241,155.11,155.04,3.2253]
[1729011692782,24.76,155.14,155.04,3.2253]
[1729011693078,24.76,155.14,155.02,7.34]
[1729011693261,3.2246,155.09,155.05,3.2252]
[1729011693767,3.2238,155.12,155.04,24.76]
[1729011693968,7.34,155.15,155.05,3.25615003]
[1729011694273,3.2234,155.14,155.07,24.76]
[1729011694469,3.2234,155.14,155.07,32.1]
[1729011694668,32.1,155.19,155.07,32.1]
[1729011694868,3.2239,155.12,155.09,3.2243]
[1729011695377,32.1,155.19,155.09,3.2243]
[1729011695563,3.2236,155.13,155.09,3.2243]
[1729011695967,3.224,155.11,155.08,3.2246]
[1729011696373,24.76,155.21,155.09,24.76]
[1729011696674,4.0313,155.2,155.11,24.76]
[1729011697070,1.3248,155.2,155.15,3.2231]
[1729011697278,1.3248,155.2,155.14,24.76]
[1729011697485,7.34,155.23,155.14,24.76]
[1729011697668,3.222,155.21,155.17,3.2225]
[1729011698976,3.2218,155.22,155.18,3.2223]
[1729011699477,3.2218,155.22,155.14,24.76]
[1729011699777,3.222,155.21,155.14,24.76]
[1729011699984,1.3017,155.25,155.14,24.76]
[1729011700189,1.3017,155.25,155.16,3.2228]
[1729011700481,3.2221,155.21,155.14,24.76]
[1729011700676,1.3017,155.25,155.16,3.2228]
[1729011700980,3.2222,155.2,155.16,3.2228]
[1729011702077,3.2224,155.19,155.16,3.2228]
[1729011703173,3.2217,155.22,155.17,3.2225]
[1729011703374,2.6704,155.29,155.18,24.76]
[1729011703581,2.6704,155.29,155.21,24.76]
[1729011703785,3.2205,155.28,155.21,24.76]
[1729011703982,2.6704,155.29,155.21,24.76]
[1729011704289,3.2199,155.31,155.28,3.2204]
[1729011704582,7.34,155.36,155.28,3.2204]
[1729011704583,1.3287,155.34,155.28,3.2204]
[1729011704789,3.2197,155.32,155.28,3.2204]
[1729011705091,1.03220613,155.33,155.28,3.2204]
[1729011705275,1.03220613,155.33,155.27,3.2206]
[1729011705476,1.03220613,155.33,155.24,24.76]
[1729011705877,1.03220613,155.33,155.26,3.2207]
[1729011706184,1.03220613,155.33,155.24,24.76]
[1729011707685,1.03220613,155.33,155.26,3.2208]
[1729011707999,24.76,155.45,155.32,24.76]
[1729011708177,1.331,155.42,155.36,3.2186]
[1729011708380,1.331,155.42,155.32,35.35098827]
[1729011708690,1.331,155.42,155.32,32.1]
[1729011710379,3.2181,155.39,155.35,3.219]
[1729011712684,3.2179,155.41,155.37,3.2185]
[1729011712885,3.2179,155.41,155.37,24.76]
[1729011713085,166.53492913,155.46,155.37,24.76]
[1729011713086,166.53492913,155.46,155.37,32.08]
[1729011713283,3.2175,155.43,155.39,3.218]
[1729011714193,3.15894997,155.47,155.4,3.2178]
[1729011714494,3.16860938,155.48,155.37,32.08]
[1729011714684,32.08,155.49,155.37,32.08]
[1729011714992,7.32,155.49,155.39,24.76]
[1729011715386,7.32,155.49,155.44,3.2171]
[1729011715387,3.2166,155.47,155.44,3.2171]
[1729011715590,7.32,155.49,155.39,24.76]
[1729011716092,32.08,155.49,155.37,32.08]
[1729011716689,32.08,155.49,155.37,24.76]
[1729011716883,24.76,155.47,155.36,7.32]
[1729011717081,7.32,155.49,155.37,24.76]
[1729011717082,32.08,155.49,155.37,24.76]
[1729011717287,1.03118714,155.48,155.37,24.76]
[1729011717893,3.2177,155.42,155.38,3.2182]
[1729011718090,3.2177,155.42,155.37,24.76]
[1729011718792,32.08,155.49,155.37,24.76]
[1729011718993,1.03114791,155.48,155.37,24.76]
[1729011719297,1.03114791,155.48,155.34,7.32]
[1729011719298,24.76,155.45,155.34,7.32]
[1729011719498,4.0591,155.44,155.34,7.32]
[1729011720396,3.2177,155.41,155.35,24.76]
[1729011720595,4.0591,155.44,155.35,24.76]
[1729011721495,4.0591,155.44,155.31,1.4224]
[1729011721496,24.76,155.42,155.31,1.4224]
[1729011721694,24.76,155.42,155.29,32.06]
[1729011721695,28.0536555,155.42,155.29,32.06]
[1729011722186,3.2936555,155.42,155.32,24.76]
[1729011722387,14.5763,155.44,155.37,24.76]
[1729011722595,4.5313,155.44,155.4,3.2178]
[1729011723885,10.0066,155.48,155.41,3.2176]
[1729011723886,3.2171,155.45,155.41,3.2176]
[1729011724083,3.2171,155.45,155.39,24.76]
[1729011724283,3.2161,155.49,155.46,3.2167]
[1729011725298,3.2161,155.49,155.45,3.2168]
[1729011725688,3.2161,155.49,155.42,24.76]
[1729011725997,1.3626,155.51,155.4,1.2998]
[1729011726491,1.3626,155.51,155.39,7.3]
[1729011726992,1.3626,155.51,155.41,3.2177]
[1729011727589,24.76,155.5,155.4,3.2179]
[1729011727794,1.3626,155.51,155.39,7.3]
[1729011728190,1.3626,155.51,155.43,3.2173]
[1729011728386,1.3626,155.51,155.39,7.3]
[1729011728689,3.2164,155.48,155.42,3.2175]
[1729011728897,1.3626,155.51,155.42,3.2175]
[1729011729186,3.2168,155.46,155.42,3.2175]
[1729011729401,3.2168,155.46,155.43,3.2172]
[1729011729597,8.6626,155.51,155.43,24.76]
[1729011729892,3.2163,155.48,155.45,3.2168]
[1729011730796,8.6626,155.51,155.47,3.2165]
[1729011730797,3.216,155.5,155.47,3.2165]
[1729011730992,1.3626,155.51,155.43,24.76]
[1729011731600,3.2161,155.49,155.46,3.2166]
[1729011732390,3.216,155.5,155.45,3.2168]
[1729011732598,3.216,155.5,155.43,24.76]
[1729011732993,3.2161,155.49,155.46,3.2166]
[1729011733401,1.3626,155.51,155.43,24.76]
[1729011733594,3.2161,155.49,155.46,3.2166]
[1729011734689,3.2161,155.49,155.44,7.3]
[1729011734690,1.3626,155.51,155.45,24.76]
[1729011734994,3.29076785,155.53,155.44,7.3]
[1729011735195,4.59886785,155.53,155.44,7.3]
[1729011735395,3.2162,155.49,155.46,3.2167]
[1729011736799,3.2158,155.51,155.48,3.2162]
[1729011737298,3.2158,155.51,155.47,3.2164]
[1729011737597,4.60573398,155.53,155.44,7.3]
[1729011738006,1.03063604,155.52,155.44,7.3]
[1729011738398,1.3081,155.53,155.44,7.3]
[1729011738603,24.76,155.59,155.46,24.76]
[1729011738797,1.3124,155.57,155.48,24.76]
[1729011739096,3.2159,155.5,155.48,3.2161]
[1729011739302,26.0724,155.57,155.48,3.2161]
[1729011739501,3.2156,155.52,155.49,3.216]
[1729011739700,3.2156,155.52,155.46,24.76]
[1729011740100,3.2156,155.52,155.49,3.216]
[1729011740399,1.3124,155.57,155.46,24.76]
[1729011740600,3.2155,155.52,155.49,3.2159]
[1729011741395,3.17622384,155.56,155.49,3.2159]
[1729011741607,3.2158,155.51,155.48,3.2162]
[1729011741995,1.3124,155.57,155.48,24.76]
[1729011742402,342.0,155.69,155.51,24.76]
[1729011742610,2.7648,155.63,155.51,24.76]
[1729011742797,5.99767545,155.63,155.54,3.2149]
[1729011742997,2.7648,155.63,155.54,3.2149]
[1729011743199,5.91403055,155.63,155.51,24.76]
[1729011743402,3.2145,155.57,155.51,24.76]
[1729011743602,3.2145,155.57,155.49,12.30107931]
[1729011743910,3.2145,155.57,155.54,3.215]
[1729011744115,5.91403055,155.63,155.52,24.76]
[1729011744404,24.76,155.62,155.53,3.2151]
[1729011744800,24.76,155.62,155.5,24.76]
[1729011745000,24.76,155.62,155.51,3.2155]
[1729011745400,24.76,155.62,155.5,24.76]
[1729011745904,3.2148,155.55,155.5,24.76]
[1729011746099,24.76,155.62,155.5,24.76]
[1729011746499,3.2147,155.56,155.5,24.76]
[1729011746706,24.76,155.62,155.5,24.76]
[1729011747204,3.2141,155.59,155.5,24.76]
[1729011747404,24.76,155.62,155.53,3.2151]
[1729011748003,5.91403055,155.63,155.5,24.76]
[1729011748307,13.21403055,155.63,155.55,3.2147]
[1729011748900,3.2143,155.58,155.55,3.2147]
[1729011749098,13.21403055,155.63,155.52,24.76]
[1729011749303,13.21403055,155.63,155.54,3.215]
[1729011749517,13.21403055,155.63,155.52,24.76]
[1729011749900,3.14923055,155.63,155.52,24.76]
[1729011750109,1.3132,155.63,155.55,24.76]
[1729011750504,4.45993609,155.63,155.55,24.76]
[1729011750709,3.2139,155.6,155.56,3.2145]
[1729011751015,3.2139,155.6,155.55,24.76]
[1729011751199,3.2139,155.6,155.57,3.2143]
[1729011751399,4.45993609,155.63,155.55,24.76]
[1729011751614,3.2137,155.61,155.55,24.76]
[1729011751914,4.45993609,155.63,155.55,24.76]
[1729011752118,3.2139,155.6,155.55,24.76]
[1729011752310,4.45993609,155.63,155.52,24.76]
[1729011752616,3.2141,155.59,155.53,24.76]
[1729011752911,2.7314,155.62,155.53,24.76]
[1729011753211,24.76,155.67,155.55,24.76]
[1729011753413,1.3416,155.66,155.55,32.04]
[1729011753803,3.17622825,155.65,155.55,32.04]
[1729011754415,3.2133,155.63,155.59,3.2138]
[1729011754612,32.04,155.63,155.43,7.28]
[1729011754820,2.7965,155.62,155.49,24.76]
[1729011755312,2.7965,155.62,155.52,24.76]
[1729011755614,3.214,155.6,155.57,3.2143]
[1729011755813,2.7965,155.62,155.54,24.76]
[1729011756313,2.7965,155.62,155.59,3.2139]
[1729011757206,3.2131,155.64,155.52,3.28642653]
[1729011757411,3.2131,155.64,155.6,3.2137]
[1729011758309,3.2131,155.64,155.6,3.2136]
[1729011758511,1.3416,155.66,155.55,26.1789]
[1729011759014,1.3416,155.66,155.57,3.2143]
[1729011759212,1.3416,155.66,155.55,26.1789]
[1729011760212,3.2137,155.61,155.58,3.2142]
[1729011760412,3.2137,155.61,155.55,26.1789]
[1729011760916,3.2137,155.61,155.58,3.2141]
[1729011761614,3.2134,155.62,155.59,3.2138]
[1729011761807,1.3416,155.66,155.55,26.1789]
[1729011762714,3.2137,155.61,155.58,3.2141]
[1729011762919,1.3416,155.66,155.55,26.1789]
[1729011763311,3.2135,155.62,155.59,3.214]
[1729011763822,16.7716,155.66,155.59,3.214]
[1729011765119,1.3416,155.66,155.59,15.43]
[1729011765320,1.3416,155.66,155.61,3.2136]
[1729011765617,3.2131,155.64,155.61,3.2136]
[1729011765818,1.3416,155.66,155.61,3.2136]
[1729011766420,3.2129,155.65,155.61,3.2136]
[1729011766616,1.3416,155.66,155.61,3.2136]
[1729011767013,15.43,155.65,155.57,15.43]
[1729011767513,3.2136,155.61,155.58,3.2141]
[1729011767711,3.2136,155.61,155.57,15.43]
[1729011767918,15.43,155.65,155.54,15.43]
[1729011768113,15.43,155.63,155.54,15.43]
[1729011768320,15.43,155.62,155.52,15.43]
[1729011768715,15.43,155.62,155.54,3.215]
[1729011768918,15.43,155.59,155.5,15.43]
[1729011769232,4.51487476,155.58,155.5,15.43]
[1729011769521,3.2148,155.56,155.52,3.2154]
[1729011769915,1.3698,155.58,155.53,15.43]
[1729011770215,3.2145,155.57,155.53,15.43]
[1729011770415,1.3698,155.58,155.51,15.43]
[1729011770816,1.3698,155.58,155.52,3.2153]
[1729011770817,3.2151,155.54,155.52,3.2153]
[1729011771012,1.3698,155.58,155.51,15.43]
[1729011771717,1.3698,155.58,155.53,15.43]
[1729011772018,1.3698,155.58,155.54,15.43]
[1729011772223,3.2137,155.61,155.55,3.2147]
[1729011772420,1.02983069,155.6,155.54,15.43]
[1729011772921,1.02983069,155.6,155.57,15.43]
[1729011773118,3.2134,155.62,155.57,15.43]
[1729011773423,1.02972171,155.61,155.59,3.2138]
[1729011773821,1.02972171,155.61,155.57,15.43]
[1729011774023,4.5659,155.63,155.57,15.43]
[1729011774225,1.02962192,155.62,155.57,15.43]
[1729011774421,1.02962192,155.62,155.59,15.43]
[1729011774820,1.02962192,155.62,155.57,15.43]
[1729011775020,1.3526,155.63,155.57,15.43]
[1729011775324,4.24310403,155.62,155.59,3.214]
[1729011775533,3.2135,155.62,155.59,3.214]
[1729011776128,1.3526,155.63,155.57,15.43]
[1729011776328,1.02958782,155.62,155.57,15.43]
[1729011776934,3.2137,155.61,155.58,3.2142]
[1729011777339,3.2143,155.58,155.55,15.43]
[1729011777535,3.2143,155.58,155.53,15.43]
[1729011777939,3.2143,155.58,155.55,3.2147]
[1729011778335,16.7826,155.63,155.53,15.43]
[1729011778532,16.7826,155.63,155.56,3.2145]
[1729011778533,3.2141,155.59,155.56,3.2145]
[1729011778939,16.7826,155.63,155.56,3.2145]
[1729011779141,3.2145,155.57,155.54,3.2149]
[1729011780547,3.2145,155.57,155.53,15.43]
[1729011780940,3.2143,155.58,155.53,15.43]
[1729011781140,16.7826,155.63,155.56,3.2145]
[1729011782242,15.43,155.61,155.51,15.43]
[1729011782543,15.43,155.54,155.45,15.43]
[1729011782748,15.43,155.54,155.43,15.43]
[1729011782749,15.43,155.52,155.43,15.43]
[1729011782946,11.3927,155.53,155.45,15.43]
[1729011783152,11.3927,155.53,155.47,15.43]
[1729011783339,3.2149,155.55,155.52,3.2153]
[1729011783544,3.22657511,155.59,155.52,15.43]
[1729011783842,1.4136,155.6,155.58,3.2141]
[1729011784040,3.2138,155.61,155.58,3.2141]
[1729011784248,7.26,155.64,155.58,15.43]
[1729011784445,3.2131,155.64,155.61,3.2135]
[1729011785246,11.4286,155.66,155.58,3.2142]
[1729011785551,11.4286,155.66,155.57,15.43]
[1729011786057,3.2133,155.63,155.59,3.214]
[1729011786751,3.213,155.64,155.6,3.2137]
[1729011786950,15.43,155.65,155.55,7.26]
[1729011787249,15.43,155.65,155.55,22.69]
[1729011788052,3.2134,155.62,155.58,3.2141]
[1729011788352,3.2134,155.62,155.55,22.69]
[1729011788546,3.2134,155.62,155.57,3.2144]
[1729011788748,3.2134,155.62,155.57,15.43]
[1729011789257,3.2134,155.62,155.58,3.214]
[1729011789954,3.2134,155.62,155.57,15.43]
[1729011790151,3.2134,155.62,155.59,3.214]
[1729011790744,3.2134,155.62,155.53,0.6653]
[1729011790745,15.43,155.62,155.53,0.6653]
[1729011790945,22.69,155.61,155.5,1.305]
[1729011791249,15.43,155.58,155.5,1.305]
[1729011791449,15.43,155.57,155.49,15.43]
[1729011791648,16.8416,155.57,155.49,22.69]
[1729011791950,3.2149,155.55,155.51,3.2155]
[1729011792157,15.43,155.55,155.49,7.26]
[1729011792560,1.4116,155.57,155.49,22.69]
[1729011792561,16.8416,155.57,155.49,22.69]
[1729011792948,3.2158,155.51,155.48,3.2162]
[1729011793445,15.43,155.55,155.45,24.1004]
[1729011794053,16.8416,155.57,155.47,15.43]
[1729011794253,1.4116,155.57,155.49,15.43]
[1729011794449,15.43,155.56,155.49,3.2159]
[1729011794862,15.43,155.56,155.47,15.43]
[1729011795058,15.43,155.55,155.48,3.2162]
[1729011795244,15.43,155.55,155.45,24.1004]
[1729011795556,3.2154,155.53,155.48,3.2163]
[1729011795750,3.2154,155.53,155.45,24.1004]
[1729011795751,15.43,155.55,155.45,24.1004]
[1729011796060,16.8416,155.57,155.47,15.43]
[1729011796252,3.2153,155.53,155.5,3.2158]
[1729011796554,15.43,155.55,155.45,24.1004]
[1729011796759,15.43,155.53,155.45,7.26]
[1729011796957,22.69,155.53,155.45,7.26]
[1729011797146,22.69,155.53,155.43,15.43]
[1729011797348,3.2165,155.48,155.44,3.217]
[1729011797549,15.43,155.51,155.44,3.217]
[1729011797956,15.43,155.51,155.41,95.42358464]
[1729011798154,15.43,155.51,155.41,25.98358464]
[1729011798364,3.16414743,155.5,155.41,18.72358464]
[1729011798567,3.16414743,155.5,155.41,25.98358464]
[1729011798859,2.6578,155.52,155.41,22.69]
[1729011799157,15.43,155.49,155.41,22.69]
[1729011799361,18.67360497,155.49,155.41,22.69]
[1729011799652,3.2167,155.47,155.43,3.2172]
[1729011800848,3.2167,155.46,155.43,3.2172]
[1729011801251,3.24360497,155.49,155.41,22.69]
[1729011801560,3.2163,155.48,155.45,3.2168]
[1729011802065,3.216,155.5,155.46,3.2165]
[1729011802268,7.26,155.53,155.45,15.43]
[1729011802456,2.7316,155.56,155.49,15.43]
[1729011802767,1.3607,155.56,155.49,15.43]
[1729011803063,8.6716,155.57,155.49,15.43]
[1729011803264,8.6716,155.57,155.53,3.2151]
[1729011803265,3.2148,155.56,155.53,3.2151]
[1729011803456,8.6716,155.57,155.51,15.43]
[1729011803755,7.26,155.57,155.54,3.2149]
[1729011803960,7.26,155.57,155.5,24.7]
[1729011804158,7.26,155.62,155.51,7.26]
[1729011804563,3.2139,155.6,155.56,3.2145]
[1729011805660,72.66260065,155.67,155.47,1.2951]
[1729011805661,72.66260065,155.67,155.55,24.7]
[1729011805861,76.74,155.67,155.58,24.7]
[1729011806058,7.26,155.67,155.58,24.7]
[1729011806361,3.2126,155.66,155.6,3.2137]
[1729011806663,3.25239956,155.68,155.58,24.7]
[1729011806860,3.2129,155.65,155.61,3.2134]
[1729011807162,26.0174,155.69,155.6,24.7]
[1729011807163,1.3174,155.69,155.6,24.7]
[1729011807571,4.5294,155.69,155.65,3.2127]
[1729011807860,1.3174,155.69,155.65,3.2127]
[1729011808057,3.2124,155.67,155.64,3.213]
[1729011808264,1.3174,155.69,155.61,7.26]
[1729011808560,7.26,155.71,155.61,7.26]
[1729011808755,3.2117,155.71,155.61,7.26]
[1729011809161,9.9616,155.73,155.63,24.7]
[1729011809473,13.128975,155.73,155.65,3.2126]
[1729011810070,3.2119,155.7,155.65,3.2126]
[1729011810261,3.2119,155.7,155.63,24.7]
[1729011810972,3.2121,155.69,155.65,3.2127]
[1729011811472,30.568975,155.73,155.63,3.2131]
[1729011811473,3.2125,155.67,155.63,3.2131]
[1729011811660,24.7,155.71,155.58,24.7]
[1729011811865,1.02932211,155.7,155.59,7.24]
[1729011812168,24.7,155.65,155.56,1.3577]
[1729011812369,27.95516481,155.65,155.56,1.3577]
[1729011812576,27.95516481,155.65,155.56,4.5722]
[1729011812873,24.7,155.63,155.5,24.7]
[1729011813173,24.7,155.6,155.52,7.24]
[1729011813664,1.36,155.62,155.55,3.2148]
[1729011813871,1.36,155.62,155.52,7.24]
[1729011814059,24.7,155.61,155.52,7.24]
[1729011814979,3.215,155.55,155.51,3.2156]
[1729011815272,24.7,155.61,155.53,3.2151]
[1729011815771,24.7,155.61,155.54,3.215]
[1729011816358,3.2144,155.58,155.54,3.215]
[1729011817869,3.2145,155.57,155.54,3.215]
[1729011819174,3.215,155.55,155.49,1.3562]
[1729011819374,31.94,155.59,155.49,1.3562]
[1729011820064,3.2153,155.53,155.49,3.2159]
[1729011820373,3.2153,155.53,155.47,7.24]
[1729011820571,3.2151,155.54,155.5,3.2157]
[1729011820765,3.24674271,155.56,155.45,1.3646]
[1729011820977,31.94,155.59,155.46,7.24]
[1729011821188,3.2161,155.49,155.46,3.2165]
[1729011822091,35.14300688,155.53,155.45,3.2168]